bitfinex/quotes_BTCUSD_20260308
["timestamp","ask_amount","ask_price","bid_price","bid_amount"]
[1772932080849,0.0001201,67281.0,67268.0,0.04766816]
[1772932081048,0.0001201,67281.0,67272.0,0.04766816]
[1772932081253,0.0001201,67281.0,67273.0,0.04766816]
[1772932081454,0.00022001,67283.0,67276.0,0.02150221]
[1772932082139,0.00022001,67283.0,67277.0,0.0743196]
[1772932082335,0.0800506,67295.0,67280.0,0.02149155]
[1772932082551,0.0800506,67295.0,67277.0,0.0743196]
[1772932082552,0.0800506,67295.0,67284.0,0.02149155]
[1772932082713,0.0800506,67295.0,67286.0,0.04685784]
[1772932082911,0.0800506,67295.0,67287.0,0.02149155]
[1772932084123,0.0800506,67295.0,67287.0,0.07430778]
[1772932084325,0.0800506,67295.0,67288.0,0.0214874]
[1772932085112,0.08027061,67295.0,67288.0,0.0214874]
[1772932085529,0.08027061,67295.0,67288.0,0.04685784]
[1772932085860,0.08027061,67295.0,67289.0,0.02155259]
[1772932086617,0.00597001,67295.0,67290.0,0.04685784]
[1772932086810,0.00597001,67295.0,67291.0,0.02155259]
[1772932086962,0.0055,67297.0,67291.0,0.02155259]
[1772932087171,0.07429594,67299.0,67291.0,0.04685784]
[1772932087172,0.07429542,67299.0,67291.0,0.04685784]
[1772932087383,0.07429542,67299.0,67292.0,0.02155259]
[1772932087815,0.07429542,67299.0,67287.0,0.00148]
[1772932087990,0.12166313,67299.0,67287.0,0.07578853]
[1772932088191,0.07429542,67299.0,67287.0,0.07578853]
[1772932089288,0.07429542,67299.0,67287.0,0.0757883]
[1772932089503,0.07429542,67299.0,67287.0,0.00148]
[1772932089706,0.07429542,67299.0,67287.0,0.07578841]
[1772932090020,0.07429542,67299.0,67287.0,0.00148]
[1772932091228,0.07429542,67299.0,67281.0,0.12117199]
[1772932091229,0.04736771,67298.0,67277.0,0.00148]
[1772932091422,0.04736771,67298.0,67278.0,0.00148]
[1772932091577,0.07429542,67299.0,67280.0,0.01074493]
[1772932092028,0.04736771,67298.0,67280.0,0.01074493]
[1772932092492,0.04736771,67298.0,67278.0,0.00148]
[1772932093261,0.07429751,67297.0,67278.0,0.07579826]
[1772932093446,0.12166522,67297.0,67278.0,0.07579826]
[1772932093598,0.12166522,67297.0,67278.0,0.00148]
[1772932093805,0.12166522,67297.0,67278.0,0.07579843]
[1772932094139,0.12166522,67297.0,67285.0,0.0002]
[1772932095192,0.04736771,67296.0,67285.0,0.0002]
[1772932095384,0.07577972,67295.0,67285.0,0.0002]
[1772932096097,0.07577972,67295.0,67278.0,0.00168]
[1772932096407,0.12314743,67295.0,67278.0,0.00168]
[1772932096590,0.12314743,67295.0,67278.0,0.07599849]
[1772932096963,0.12314743,67295.0,67278.0,0.00168]
[1772932097959,0.12314743,67295.0,67278.0,0.0002]
[1772932098161,0.04736771,67294.0,67278.0,0.00168]
[1772932098411,0.04736771,67294.0,67272.0,0.00148]
[1772932098600,0.04748783,67294.0,67272.0,0.00148]
[1772932098879,0.04748783,67294.0,67269.0,0.07432628]
[1772932099054,0.04748783,67294.0,67272.0,0.00148]
[1772932099279,0.00012012,67294.0,67274.0,0.04685784]
[1772932099401,0.00012012,67294.0,67278.0,0.04685784]
[1772932099600,0.00012012,67294.0,67281.0,0.01052693]
[1772932099818,0.00012012,67294.0,67283.0,0.01052693]
[1772932100397,0.00015,67291.0,67283.0,0.04685784]
[1772932100529,0.00015,67291.0,67284.0,0.05738477]
[1772932102377,0.07429874,67296.0,67285.0,0.00148]
[1772932102556,0.07430024,67295.0,67288.0,0.04685784]
[1772932102751,0.07430024,67295.0,67289.0,0.07922981]
[1772932103148,0.07452025,67295.0,67289.0,0.07922981]
[1772932103346,0.07452025,67295.0,67285.0,0.00012012]
[1772932105919,0.12188796,67295.0,67285.0,0.00012012]
[1772932106201,0.12188796,67295.0,67280.0,0.00148]
[1772932106354,0.12200803,67295.0,67280.0,0.00148]
[1772932106549,0.12200803,67295.0,67275.0,0.12117953]
[1772932106791,0.12200803,67295.0,67278.0,0.00148]
[1772932107016,0.12200803,67295.0,67277.0,0.07940401]
[1772932107307,0.04736771,67294.0,67277.0,0.03254617]
[1772932108390,0.07430193,67293.0,67277.0,0.03254617]
[1772932108606,0.00148,67292.0,67277.0,0.03254617]
[1772932110443,0.07430414,67291.0,67277.0,0.03254617]
[1772932110764,0.07430414,67291.0,67277.0,0.03014617]
[1772932112553,0.07430414,67291.0,67277.0,0.03034617]
[1772932112754,0.07430414,67291.0,67273.0,0.04685784]
[1772932112955,0.04132051,67290.0,67271.0,0.03107875]
[1772932113354,0.04132051,67290.0,67271.0,0.02959875]
[1772932113561,0.04132051,67290.0,67271.0,0.03107875]
[1772932113764,0.04132051,67290.0,67271.0,0.02959875]
[1772932114105,0.04132051,67290.0,67271.0,0.03107875]
[1772932114308,0.07430414,67291.0,67271.0,0.07432617]
[1772932114662,0.07430414,67291.0,67272.0,0.07432404]
[1772932114859,0.07430414,67291.0,67274.0,0.02996697]
[1772932115083,0.07430414,67291.0,67275.0,0.07188785]
[1772932116777,0.07430414,67291.0,67272.0,0.07432507]
[1772932116981,0.07430414,67291.0,67274.0,0.02996697]
[1772932117178,0.07430414,67291.0,67276.0,0.02996697]
[1772932117393,0.07430414,67291.0,67279.0,0.04192088]
[1772932117601,0.07430414,67291.0,67282.0,0.02996697]
[1772932117817,0.07430414,67291.0,67276.0,0.00148]
[1772932118230,0.07430414,67291.0,67278.0,0.02996697]
[1772932118402,0.07430414,67291.0,67280.0,0.02996697]
[1772932118727,0.07430414,67291.0,67281.0,0.07188785]
[1772932118931,0.07430635,67289.0,67281.0,0.07188785]
[1772932119431,0.07430635,67289.0,67276.0,0.00148]
[1772932119594,0.07430635,67289.0,67277.0,0.04192088]
[1772932119781,0.07430635,67289.0,67279.0,0.04192088]
[1772932121699,0.07449115,67289.0,67277.0,0.03016697]
[1772932122359,0.07449115,67289.0,67277.0,1e-08]
[1772932122495,0.11581166,67289.0,67277.0,1e-08]
[1772932123115,0.11581166,67289.0,67272.0,0.00148]
[1772932123515,0.11581166,67289.0,67271.0,0.02996697]
[1772932123721,0.11581166,67289.0,67272.0,0.00148]
[1772932124151,0.11581166,67289.0,67271.0,0.03144697]
[1772932124559,0.11581166,67289.0,67274.0,0.00015]
[1772932126391,0.11581166,67289.0,67271.0,0.02996697]
[1772932126700,0.03911477,67288.0,67268.0,0.00595]
[1772932127274,0.04132051,67286.0,67268.0,0.00595]
[1772932127592,0.04150531,67286.0,67268.0,0.00595]
[1772932129203,0.07431076,67285.0,67268.0,0.06325625]
[1772932129404,0.07431076,67285.0,67253.0,0.07434509]
[1772932129405,0.04132051,67283.0,67255.0,0.07434383]
[1772932129710,0.04150531,67283.0,67257.0,0.07434121]
[1772932129914,0.04150531,67283.0,67261.0,0.02890918]
[1772932130223,0.04150531,67283.0,67261.0,0.0002]
[1772932130409,0.04150531,67283.0,67261.0,0.02890918]
[1772932131185,0.07431408,67282.0,67261.0,0.02890918]
[1772932131382,0.04132051,67281.0,67261.0,0.02890918]
[1772932131608,0.04150531,67281.0,67261.0,0.02890918]
[1772932133305,0.04132051,67279.0,67256.0,0.02864255]
[1772932133510,0.04280051,67278.0,67257.0,0.04192088]
[1772932133710,0.04280051,67278.0,67258.0,0.02858098]
[1772932134468,0.04280051,67278.0,67259.0,0.02858098]
[1772932135209,0.0743196,67277.0,67259.0,0.02858098]
[1772932136919,0.0743196,67277.0,67259.0,0.02878098]
[1772932137617,0.0743196,67277.0,67262.0,0.04192088]
[1772932137818,0.0743196,67277.0,67265.0,0.02632639]
[1772932138017,0.0743196,67277.0,67266.0,0.04192088]
[1772932138222,0.0743196,67277.0,67267.0,0.02632639]
[1772932138642,0.0743196,67277.0,67266.0,0.04192088]
[1772932138859,0.0743196,67277.0,67267.0,0.0131632]
[1772932139295,0.0743196,67277.0,67268.0,0.04192088]
[1772932139458,0.0743196,67277.0,67259.0,0.0002]
[1772932139658,0.0743196,67277.0,67262.0,0.0089465]
[1772932139877,0.0743196,67277.0,67264.0,0.0089465]
[1772932140076,0.0743196,67277.0,67265.0,0.0089465]
[1772932142358,0.0356034,67276.0,67255.0,0.01223731]
[1772932142579,0.0356034,67276.0,67257.0,0.01238731]
[1772932143746,0.005,67275.0,67257.0,0.00015]
[1772932144512,0.005,67273.0,67257.0,0.00015]
[1772932144734,0.005,67271.0,67257.0,0.00015]
[1772932145001,0.005,67271.0,67257.0,0.00035]
[1772932145745,0.00508921,67271.0,67257.0,0.00035]
[1772932147355,0.005,67269.0,67257.0,0.00035]
[1772932147532,0.005,67269.0,67257.0,0.00183]
[1772932147920,0.005,67269.0,67257.0,0.00035]
[1772932148115,0.005,67269.0,67257.0,0.00183]
[1772932148456,0.005,67269.0,67257.0,0.00035]
[1772932149288,0.07432954,67268.0,67257.0,0.00035]
[1772932149488,0.005,67267.0,67257.0,0.00035]
[1772932151366,0.005,67267.0,67249.0,0.0743497]
[1772932151367,0.005,67265.0,67244.0,0.03671927]
[1772932151567,0.07581175,67266.0,67247.0,0.00148]
[1772932151568,0.0356034,67264.0,67247.0,0.00148]
[1772932151765,0.07581175,67266.0,67252.0,0.006587]
[1772932151986,0.07581175,67266.0,67252.0,0.03671927]
[1772932152189,0.07581175,67266.0,67253.0,0.006587]
[1772932154185,0.07581175,67266.0,67247.0,0.07583271]
[1772932154186,0.0356034,67264.0,67249.0,0.00148]
[1772932154398,0.00479331,67263.0,67249.0,0.00148]
[1772932154590,0.00479331,67263.0,67246.0,0.00473465]
[1772932154794,0.00479331,67263.0,67249.0,0.00148]
[1772932155706,0.07433617,67262.0,67249.0,0.00621465]
[1772932156918,0.07433617,67262.0,67249.0,0.00473465]
[1772932158957,0.07433617,67262.0,67248.0,0.00148]
[1772932159172,0.07433617,67262.0,67250.0,0.00533465]
[1772932159959,0.07433617,67263.0,67250.0,0.00533465]
[1772932165693,0.00479331,67262.0,67247.0,0.00148]
[1772932166279,0.00479331,67262.0,67245.0,0.03691927]
[1772932166514,0.00479331,67262.0,67246.0,0.00148]
[1772932167085,0.00479331,67262.0,67247.0,0.00148]
[1772932167280,0.00479331,67260.0,67243.0,0.00493465]
[1772932167470,0.00479331,67255.0,67239.0,0.00808265]
[1772932167673,0.03864497,67255.0,67239.0,0.00808265]
[1772932167875,0.0743428,67256.0,67242.0,0.00473465]
[1772932168076,0.00148,67255.0,67243.0,0.00473465]
[1772932168276,0.00148,67255.0,67246.0,0.03671927]
[1772932168492,0.00148,67255.0,67247.0,0.00473465]
[1772932169107,0.00148,67255.0,67248.0,0.03671927]
[1772932169357,0.00148,67255.0,67249.0,0.00473465]
[1772932169742,0.07434502,67254.0,67249.0,0.00473465]
[1772932170339,0.07434502,67254.0,67249.0,0.00493465]
[1772932171336,0.07434502,67254.0,67250.0,0.00473465]
[1772932171835,0.07434502,67254.0,67249.0,0.0002]
[1772932172034,0.07434502,67254.0,67246.0,0.00621465]
[1772932172255,0.07434502,67254.0,67246.0,0.00473465]
[1772932176469,0.07434502,67254.0,67243.0,0.00148]
[1772932176669,0.07434502,67254.0,67244.0,0.00473465]
[1772932178695,0.07434502,67254.0,67244.0,0.00493465]
[1772932185836,0.07456503,67254.0,67244.0,0.00493465]
[1772932192772,0.03090805,67261.0,67244.0,0.00493465]
[1772932192773,0.03216804,67280.0,67247.0,0.03096928]
[1772932192993,0.00148,67281.0,67266.0,0.00681731]
[1772932193162,0.00148,67280.0,67266.0,0.00681731]
[1772932194011,0.00148,67280.0,67267.0,0.03096928]
[1772932194335,0.07579632,67280.0,67270.0,0.07432733]
[1772932194515,0.07431632,67280.0,67271.0,0.00684617]
[1772932197034,0.07431632,67280.0,67271.0,0.07432614]
[1772932197322,0.07431632,67280.0,67272.0,0.00685258]
[1772932199717,0.07431632,67280.0,67271.0,0.07432606]
[1772932200328,0.07431632,67280.0,67261.0,0.07433675]
[1772932200530,0.07431632,67280.0,67261.0,0.07442596]
[1772932201146,0.07431849,67278.0,67261.0,0.07442596]
[1772932201454,0.06454119,67277.0,67261.0,0.07442596]
[1772932201650,0.07431849,67278.0,67253.0,0.07434589]
[1772932201850,0.07442565,67278.0,67253.0,0.0743461]
[1772932202028,0.07442565,67278.0,67254.0,0.07597294]
[1772932202547,0.06735702,67277.0,67254.0,0.07597294]
[1772932202749,0.07442565,67278.0,67254.0,0.001628]
[1772932202931,0.07442565,67278.0,67254.0,0.000148]
[1772932203111,0.03385315,67268.0,67254.0,0.000148]
[1772932203305,0.00148,67267.0,67254.0,0.000148]
[1772932203499,0.00148,67267.0,67250.0,0.0004]
[1772932204123,0.00148,67267.0,67246.0,0.000148]
[1772932204484,0.00148,67267.0,67246.0,0.07450182]
[1772932205022,0.00148,67267.0,67246.0,0.000148]
[1772932205262,0.07433286,67265.0,67246.0,0.000148]
[1772932205458,0.07433286,67265.0,67244.0,0.07455527]
[1772932206164,0.06735702,67264.0,67244.0,0.07455527]
[1772932206359,0.07433286,67265.0,67244.0,0.07455527]
[1772932206570,0.06735702,67264.0,67244.0,0.07455527]
[1772932206769,0.07433286,67265.0,67244.0,0.07455527]
[1772932208195,0.00022001,67264.0,67244.0,0.07455527]
[1772932208986,0.06735702,67263.0,67244.0,0.07455527]
[1772932209290,0.06735702,67261.0,67244.0,0.07455527]
[1772932209506,0.03385315,67258.0,67244.0,0.07455527]
[1772932211460,0.03385315,67255.0,67244.0,0.0002]
[1772932212130,0.06735702,67255.0,67244.0,0.0002]
[1772932212693,0.06741057,67255.0,67244.0,0.0002]
[1772932213511,0.07434502,67254.0,67244.0,0.0002]
[1772932213692,0.10819817,67254.0,67244.0,0.0002]
[1772932215562,0.10841818,67254.0,67244.0,0.0002]
[1772932219592,0.10841818,67254.0,67244.0,3.172e-05]
[1772932221299,0.03385315,67253.0,67243.0,0.07570052]
[1772932222057,0.03385315,67253.0,67243.0,0.07435711]
[1772932222270,0.03385315,67253.0,67243.0,0.07583711]
[1772932223090,0.07434723,67252.0,67243.0,0.07435711]
[1772932223304,0.03385315,67251.0,67243.0,0.07583711]
[1772932223905,0.03385315,67251.0,67243.0,0.07603711]
[1772932224780,0.03385315,67251.0,67243.0,0.07455711]
[1772932224986,0.03385315,67251.0,67243.0,0.07603711]
[1772932225193,0.10820219,67251.0,67243.0,0.07603711]
[1772932226762,0.10820219,67251.0,67243.0,0.07455711]
[1772932226988,0.10820219,67251.0,67243.0,0.07603711]
[1772932227894,0.10820219,67251.0,67243.0,0.07455711]
[1772932229217,0.10820219,67251.0,67244.0,0.11876206]
[1772932229406,0.10820219,67251.0,67244.0,0.19311774]
[1772932229767,0.07434904,67251.0,67244.0,0.19311774]
[1772932229975,0.03385315,67250.0,67244.0,0.19311774]
[1772932230509,0.10820293,67250.0,67244.0,0.07435568]
[1772932231075,0.10820293,67250.0,67245.0,0.11876206]
[1772932231494,0.10820293,67250.0,67245.0,0.11859374]
[1772932231699,0.03385315,67249.0,67245.0,0.04229891]
[1772932231896,0.03385315,67249.0,67244.0,0.0002]
[1772932232096,0.03385315,67249.0,67244.0,3.169e-05]
[1772932232713,0.1082038,67249.0,67244.0,3.169e-05]
[1772932232908,0.03385315,67249.0,67244.0,3.169e-05]
[1772932233304,0.07434904,67251.0,67244.0,3.169e-05]
[1772932234629,0.07434833,67253.0,67243.0,0.07442049]
[1772932235810,0.03337863,67252.0,67243.0,0.07590049]
[1772932236028,0.03337863,67252.0,67240.0,0.17829762]
[1772932236239,0.07434833,67253.0,67236.0,0.22288453]
[1772932236240,0.03725795,67249.0,67236.0,0.0002]
[1772932236454,0.03725795,67245.0,67233.0,0.00148]
[1772932236824,0.03337863,67241.0,67231.0,0.0002]
[1772932236964,0.03485863,67241.0,67231.0,0.0002]
[1772932237391,0.03725795,67240.0,67231.0,0.0002]
[1772932237610,0.03337863,67239.0,67231.0,0.0002]
[1772932238712,0.04217554,67237.0,67230.0,0.0002]
[1772932240183,0.04234386,67236.0,67230.0,0.0002]
[1772932240936,0.04217554,67234.0,67230.0,0.0002]
[1772932242315,0.04229449,67234.0,67230.0,3.176e-05]
[1772932242517,0.04229449,67234.0,67228.0,9.658e-05]
[1772932243127,0.00016832,67233.0,67228.0,9.658e-05]
[1772932244119,0.07436602,67236.0,67228.0,9.658e-05]
[1772932244448,0.07436602,67236.0,67228.0,0.00049728]
[1772932245855,0.07436381,67237.0,67229.0,0.07437266]
[1772932249137,0.0743625,67239.0,67229.0,0.07437266]
[1772932249347,0.0329546,67238.0,67229.0,0.07437266]
[1772932249772,0.0329546,67238.0,67228.0,0.00069728]
[1772932250597,0.03725795,67237.0,67225.0,0.0006]
[1772932250778,0.02618911,67236.0,67225.0,0.00208]
[1772932252553,0.02682826,67234.0,67225.0,0.00208]
[1772932252949,0.02682826,67234.0,67225.0,0.0006]
[1772932254362,0.07436824,67233.0,67225.0,0.0006]
[1772932254657,0.02850007,67232.0,67225.0,0.0006]
[1772932256540,0.07437045,67231.0,67225.0,0.0006]
[1772932256736,0.02850007,67230.0,67225.0,0.0006]
[1772932256938,0.02850007,67230.0,67225.0,0.00043174]
[1772932257409,0.02850007,67229.0,67222.0,0.0002]
[1772932259792,0.02850007,67227.0,67225.0,0.0002]
[1772932261755,0.07437598,67226.0,67225.0,0.0002]
[1772932263687,0.07537598,67226.0,67225.0,0.0002]
[1772932264201,0.02500452,67227.0,67225.0,0.0002]
[1772932264357,0.001,67226.0,67225.0,0.0002]
[1772932264970,0.002,67226.0,67225.0,0.0002]
[1772932265241,0.07585377,67230.0,67225.0,0.0002]
[1772932266180,0.07585377,67230.0,67225.0,0.0005878]
[1772932266378,0.03382485,67230.0,67225.0,0.0005878]
[1772932270467,0.03382485,67230.0,67225.0,0.00041959]
[1772932271340,0.03382485,67230.0,67225.0,0.0002514]
[1772932272557,0.03382485,67230.0,67225.0,0.0004514]
[1772932274719,0.03382485,67230.0,67213.0,0.17825442]
[1772932274720,0.04021299,67228.0,67213.0,0.17825442]
[1772932274939,0.04021299,67224.0,67211.0,0.0003657]
[1772932275183,0.04021299,67224.0,67202.0,0.1161313]
[1772932275184,0.04021299,67219.0,67207.0,1e-08]
[1772932275382,0.04425319,67221.0,67207.0,1e-08]
[1772932275383,0.04021299,67215.0,67207.0,1e-08]
[1772932275629,0.02500452,67213.0,67207.0,1e-08]
[1772932275801,0.02500452,67211.0,67202.0,0.0001657]
[1772932276003,0.02500452,67211.0,67199.0,0.03867138]
[1772932276183,0.02500452,67211.0,67197.0,0.0744076]
[1772932276550,0.02500452,67211.0,67197.0,0.07146439]
[1772932276755,0.07439369,67210.0,67197.0,0.07146439]
[1772932276991,0.09939821,67210.0,67197.0,0.07146439]
[1772932277310,0.07439369,67210.0,67197.0,0.00011895]
[1772932277527,0.07439369,67210.0,67197.0,0.11609101]
[1772932278785,0.0743959,67208.0,67197.0,0.11609101]
[1772932279620,0.0743959,67208.0,67197.0,0.11629101]
[1772932280206,0.07439369,67210.0,67197.0,0.11629101]
[1772932280407,0.00148,67209.0,67197.0,0.11629101]
[1772932280815,0.00148,67208.0,67197.0,0.11629101]
[1772932281016,0.00148,67208.0,67197.0,0.07472703]
[1772932281653,0.07438901,67215.0,67198.0,0.00148]
[1772932281965,0.0743826,67221.0,67198.0,0.00148]
[1772932281966,0.074943,67225.0,67201.0,0.04156398]
[1772932282300,0.074943,67225.0,67203.0,0.04156398]
[1772932282505,0.0005657,67225.0,67205.0,0.04156398]
[1772932282706,0.00022001,67226.0,67205.0,0.04156398]
[1772932283842,0.00022001,67226.0,67205.0,0.04256398]
[1772932284324,0.00022001,67226.0,67207.0,0.04156398]
[1772932284542,0.00015,67224.0,67207.0,0.04156398]
[1772932285300,0.00015,67224.0,67207.0,0.04139576]
[1772932285827,0.00015,67224.0,67207.0,0.04239576]
[1772932286163,0.00015,67224.0,67207.0,0.0412275]
[1772932286327,0.00015,67224.0,67209.0,0.04156398]
[1772932286686,0.00015,67224.0,67210.0,0.00148]
[1772932286815,0.03147627,67224.0,67210.0,0.00148]
[1772932292088,0.03147627,67224.0,67211.0,0.07439258]
[1772932293492,0.1058546,67224.0,67211.0,0.07439258]
[1772932293693,0.03101882,67223.0,67211.0,0.07439258]
[1772932294623,0.0570437,67222.0,67210.0,0.07439361]
[1772932294778,0.04140876,67217.0,67203.0,0.07440106]
[1772932294977,0.0585237,67222.0,67203.0,0.07440106]
[1772932294978,0.04140876,67214.0,67203.0,0.07440106]
[1772932295171,0.0308781,67213.0,67203.0,0.07440106]
[1772932297070,0.0308781,67213.0,67202.0,0.07440254]
[1772932297071,0.03072401,67212.0,67202.0,0.07588254]
[1772932297553,0.03072401,67212.0,67202.0,0.07440254]
[1772932298816,0.03072401,67212.0,67202.0,0.07588254]
[1772932300946,0.00987992,67212.0,67202.0,0.07588254]
[1772932301462,0.00987992,67212.0,67202.0,0.0757143]
[1772932301967,0.00987992,67212.0,67202.0,0.0759143]
[1772932311946,0.00022001,67223.0,67202.0,0.0759143]
[1772932312145,0.00022001,67223.0,67203.0,0.04173086]
[1772932313874,0.00022001,67223.0,67203.0,0.04273086]
[1772932314184,0.00022001,67223.0,67205.0,0.04173086]
[1772932314949,0.01339749,67223.0,67205.0,0.04173086]
[1772932315173,0.00669875,67223.0,67205.0,0.04173086]
[1772932315376,0.09549995,67224.0,67206.0,0.00148]
[1772932315377,0.00669875,67221.0,67206.0,0.00148]
[1772932316043,0.00669875,67221.0,67207.0,0.07439701]
[1772932316244,0.00669875,67221.0,67208.0,0.00148]
[1772932316640,0.00673595,67219.0,67208.0,0.00148]
[1772932318266,0.00673595,67219.0,67209.0,0.00148]
[1772932321221,0.00673595,67219.0,67210.0,0.07439369]
[1772932321421,0.00022001,67221.0,67210.0,0.11612455]
[1772932321625,0.00022001,67221.0,67211.0,0.04241782]
[1772932321981,0.00022001,67221.0,67210.0,0.07439369]
[1772932322292,0.00170001,67233.0,67211.0,0.04193332]
[1772932322692,0.00170001,67233.0,67210.0,0.07439369]
[1772932322693,0.00048931,67235.0,67210.0,0.07439369]
[1772932322900,0.00022001,67240.0,67213.0,2.004845]
[1772932323103,0.00022001,67240.0,67217.0,0.07438594]
[1772932323300,0.00022001,67240.0,67219.0,0.04193332]
[1772932324544,0.00062064,67240.0,67219.0,0.04193332]
[1772932325512,0.00062064,67240.0,67221.0,0.04193332]
[1772932326480,0.00746188,67240.0,67221.0,0.04193332]
[1772932326852,0.00746188,67240.0,67221.0,0.04293332]
[1772932327184,0.00669124,67238.0,67221.0,0.04293332]
[1772932327386,0.00669124,67238.0,67222.0,0.07438041]
[1772932327818,1e-08,67238.0,67222.0,0.07438041]
[1772932327955,1e-08,67238.0,67223.0,0.00450688]
[1772932328151,1e-08,67238.0,67224.0,0.00148]
[1772932328358,1e-08,67238.0,67225.0,0.0047121]
[1772932329149,0.03750087,67242.0,67225.0,0.0047121]
[1772932329349,0.03750087,67242.0,67225.0,0.00511273]
[1772932329350,0.00499928,67241.0,67225.0,0.00511273]
[1772932329856,0.00499928,67241.0,67226.0,0.07437598]
[1772932331171,0.005,67240.0,67226.0,0.07437598]
[1772932331907,0.005,67239.0,67226.0,0.07437598]
[1772932332109,0.04399071,67238.0,67226.0,0.07437598]
[1772932332296,0.005,67235.0,67226.0,0.07437598]
[1772932335874,0.04399071,67236.0,67226.0,0.07437598]
[1772932336806,0.07436297,67238.0,67226.0,0.07437598]
[1772932338336,0.04421072,67240.0,67226.0,0.07437598]
[1772932338628,0.00022001,67240.0,67228.0,0.0047121]
[1772932340191,0.00170001,67240.0,67228.0,0.0047121]
[1772932340395,0.00022001,67240.0,67230.0,0.0047121]
[1772932340679,0.00148,67241.0,67230.0,0.0047121]
[1772932340890,0.07435498,67245.0,67230.0,0.0061921]
[1772932341056,0.00148,67243.0,67231.0,0.0047121]
[1772932341274,0.00022001,67240.0,67231.0,0.0047121]
[1772932341497,0.00148,67243.0,67231.0,0.0047121]
[1772932341879,0.07957555,67244.0,67231.0,0.0047121]
[1772932342177,0.00647928,67243.0,67230.0,0.00148]
[1772932342393,0.00499928,67243.0,67230.0,0.00148]
[1772932342592,0.07935756,67242.0,67231.0,0.07437045]
[1772932343033,0.00499928,67241.0,67231.0,0.07437045]
[1772932343525,0.00499928,67241.0,67231.0,0.06310578]
[1772932343693,0.04399071,67240.0,67231.0,0.06310578]
[1772932343884,0.00499928,67237.0,67231.0,0.01709043]
[1772932344767,0.00499928,67237.0,67228.0,0.00148]
[1772932344974,0.07936329,67237.0,67227.0,0.07585471]
[1772932346012,0.00499928,67237.0,67227.0,0.07585471]
[1772932346208,0.00499928,67237.0,67227.0,0.07437471]
[1772932346409,0.0001491,67240.0,67227.0,0.07585471]
[1772932347126,0.0001491,67240.0,67229.0,0.0047121]
[1772932347549,0.00036911,67240.0,67229.0,0.0047121]
[1772932349138,0.00036911,67240.0,67230.0,0.07437156]
[1772932350940,0.00036911,67240.0,67231.0,0.0047121]
[1772932352147,0.00036911,67240.0,67232.0,0.07436934]
[1772932353225,0.0743616,67239.0,67232.0,0.07436934]
[1772932353543,0.05345668,67239.0,67232.0,0.07436934]
[1772932354315,0.05345668,67239.0,67228.0,0.07457277]
[1772932356746,0.00536839,67240.0,67228.0,0.07457277]
[1772932356952,0.07472976,67240.0,67231.0,0.0047121]
[1772932357157,0.00022001,67241.0,67231.0,0.0047121]
[1772932357371,0.00170001,67247.0,67233.0,0.0047121]
[1772932357568,0.07605279,67247.0,67235.0,0.04596757]
[1772932357767,0.07605279,67247.0,67236.0,0.0047121]
[1772932358580,0.07457279,67247.0,67236.0,0.0047121]
[1772932358780,0.07457279,67247.0,67238.0,0.00471771]
[1772932358781,0.07457321,67247.0,67238.0,0.00471771]
[1772932359191,0.00022001,67247.0,67238.0,0.00471771]
[1772932359397,0.07457294,67247.0,67238.0,0.00471771]
[1772932360437,0.00022001,67247.0,67238.0,0.00471771]
[1772932360837,0.0745735,67247.0,67239.0,0.0743616]
[1772932363294,0.00022001,67247.0,67239.0,0.0743616]
[1772932364420,0.0013777,67250.0,67241.0,0.00471771]
[1772932364595,0.07720722,67250.0,67241.0,0.00471771]
[1772932364771,0.07720722,67250.0,67242.0,0.07435828]
[1772932364994,0.07572722,67250.0,67242.0,0.07435828]
[1772932365824,0.05633448,67250.0,67242.0,0.07435828]
[1772932368319,0.05485448,67250.0,67242.0,0.07435828]
[1772932369165,0.05507449,67250.0,67242.0,0.07435828]
[1772932377106,0.07456395,67255.0,67241.0,0.05080906]
[1772932377304,0.07456462,67255.0,67242.0,0.04932906]
[1772932378308,0.0328348,67255.0,67242.0,0.04932906]
[1772932379329,0.03736101,67255.0,67243.0,0.07435718]
[1772932379845,0.0328348,67255.0,67243.0,0.07435718]
[1772932380633,0.00452621,67254.0,67243.0,0.07435718]
[1772932381505,0.07434612,67253.0,67243.0,0.07435718]
[1772932381680,0.07887233,67253.0,67243.0,0.07435718]
[1772932383806,0.07434612,67253.0,67243.0,0.07435718]
[1772932383985,0.07456613,67254.0,67244.0,0.0111992]
[1772932384601,0.08116032,67254.0,67243.0,0.07435718]
[1772932384811,0.00659419,67253.0,67243.0,0.07435718]
[1772932385991,0.00659419,67251.0,67243.0,0.07435718]
[1772932389451,0.0068142,67251.0,67243.0,0.07435718]
[1772932389648,0.0068142,67251.0,67243.0,0.07583718]
[1772932390116,0.07456878,67251.0,67243.0,0.00148]
[1772932390315,0.00550226,67250.0,67243.0,0.00148]
[1772932390623,0.07456878,67251.0,67243.0,0.00148]
[1772932391821,0.07456878,67251.0,67244.0,0.07435607]
[1772932392430,0.07456878,67251.0,67242.0,0.0002]
[1772932392629,0.00498626,67248.0,67241.0,0.02789934]
[1772932392846,0.00468008,67248.0,67241.0,0.02789934]
[1772932393053,0.00405356,67248.0,67241.0,0.02789934]
[1772932393853,0.00405356,67248.0,67240.0,0.07435993]
[1772932397695,0.00405356,67248.0,67240.0,0.07455993]
[1772932402131,0.00390047,67248.0,67240.0,0.07455993]
[1772932402333,0.00374737,67248.0,67240.0,0.07455993]
[1772932402701,0.07434953,67250.0,67240.0,0.07455993]
[1772932405571,0.07454193,67250.0,67240.0,0.07455993]
[1772932415021,0.05364114,67250.0,67240.0,0.07455993]
[1772932416050,0.05386115,67250.0,67240.0,0.07455993]
[1772932416650,0.05884741,67250.0,67240.0,0.07455993]
[1772932417749,0.05386115,67250.0,67240.0,0.07455993]
[1772932417957,0.00498626,67249.0,67240.0,0.07455993]
[1772932418637,0.00517866,67249.0,67240.0,0.07455993]
[1772932420503,0.07952932,67249.0,67240.0,0.07455993]
[1772932420707,0.00471528,67248.0,67240.0,0.07455993]
[1772932421596,0.00490768,67248.0,67240.0,0.07455993]
[1772932422773,0.00471528,67247.0,67240.0,0.07455993]
[1772932423625,0.00490768,67247.0,67240.0,0.07455993]
[1772932424626,0.0001924,67247.0,67240.0,0.07455993]
[1772932424807,0.00022001,67251.0,67240.0,0.07455993]
[1772932424979,0.00493529,67251.0,67240.0,0.07455993]
[1772932425995,0.07928373,67251.0,67241.0,0.00341455]
[1772932426695,0.07928373,67251.0,67242.0,0.07435828]
[1772932426890,0.07928373,67251.0,67243.0,0.00341444]
[1772932427265,0.00493529,67251.0,67243.0,0.00341444]
[1772932427586,0.05025019,67252.0,67243.0,0.00341444]
[1772932428676,0.05025019,67252.0,67244.0,0.00490152]
[1772932428860,0.00148,67252.0,67245.0,0.07435497]
[1772932429072,0.00148,67252.0,67246.0,0.00490137]
[1772932430610,0.00170001,67252.0,67246.0,0.00490137]
[1772932430786,0.07604766,67252.0,67246.0,0.07925485]